[Event "Titled Tuesday Blitz June 28 Late 2022"]
[White "Sanchez Alarcon, Juan"]
[Black "Przybylski, Wojciech"]
[WhiteFideId "3401332"]
[BlackFideId "1117599"]
[WhiteElo "2164"]
[BlackElo "2133"]
[Result "1/2-1/2"]
[Round "01"]
[TimeControl "180+1"]
[Date "2022.06.29"]
[WhiteClock "0:01:27"]
[BlackClock "0:00:27"]

1. e4 {[%clk 0:03:00]}  c5 {[%clk 0:02:57]} 2. c3 {[%clk 0:02:59]}  Nf6 {[%clk 0:02:54]} 3. e5 {[%clk 0:02:59]}  Nd5 {[%clk 0:02:54]} 4. d4 {[%clk 0:02:59]}  d6 {[%clk 0:02:53]} 5. Nf3 {[%clk 0:02:58]}  Nc6 {[%clk 0:02:51]} 6. Bc4 {[%clk 0:02:55]}  Nb6 {[%clk 0:02:49]} 7. Bb5 {[%clk 0:02:55]}  cxd4 {[%clk 0:02:47]} 8. cxd4 {[%clk 0:02:52]}  d5 {[%clk 0:02:46]} 9. Nc3 {[%clk 0:02:47]}  Bg4 {[%clk 0:02:42]} 10. Be3 {[%clk 0:02:44]}  e6 {[%clk 0:02:42]} 11. h3 {[%clk 0:02:43]}  Bh5 {[%clk 0:02:41]} 12. O-O {[%clk 0:02:42]}  Be7 {[%clk 0:02:40]} 13. Rc1 {[%clk 0:02:39]}  O-O {[%clk 0:02:40]} 14. Be2 {[%clk 0:02:37]}  Rc8 {[%clk 0:02:38]} 15. Qd2 {[%clk 0:02:36]}  Re8 {[%clk 0:02:35]} 16. b3 {[%clk 0:02:35]}  Ba3 {[%clk 0:02:33]} 17. Rcd1 {[%clk 0:02:33]}  h6 {[%clk 0:02:32]} 18. Nh2 {[%clk 0:02:26]}  Bg6 {[%clk 0:02:28]} 19. f4 {[%clk 0:02:25]}  Bb4 {[%clk 0:02:24]} 20. Rc1 {[%clk 0:02:22]}  Ba3 {[%clk 0:02:24]} 21. Rcd1 {[%clk 0:02:21]}  Ne7 {[%clk 0:02:24]} 22. Nb1 {[%clk 0:02:20]}  Bxb1 {[%clk 0:02:20]} 23. Rxb1 {[%clk 0:02:19]}  Nf5 {[%clk 0:02:17]} 24. Bf2 {[%clk 0:02:18]}  Qc7 {[%clk 0:02:13]} 25. Bd3 {[%clk 0:02:17]}  Qc3 {[%clk 0:02:09]} 26. Qxc3 {[%clk 0:02:17]}  Rxc3 {[%clk 0:02:07]} 27. Rfd1 {[%clk 0:02:17]}  Rec8 {[%clk 0:02:03]} 28. Nf3 {[%clk 0:02:17]}  Bc1 {[%clk 0:01:54]} 29. g3 {[%clk 0:02:11]}  g5 {[%clk 0:01:33]} 30. fxg5 {[%clk 0:02:09]}  hxg5 {[%clk 0:01:33]} 31. g4 {[%clk 0:02:09]}  Ne7 {[%clk 0:01:13]} 32. Be1 {[%clk 0:02:06]}  R3c7 {[%clk 0:01:10]} 33. Bd2 {[%clk 0:02:05]}  Bxd2 {[%clk 0:01:05]} 34. Rxd2 {[%clk 0:02:05]}  Rc1+ {[%clk 0:01:04]} 35. Rxc1 {[%clk 0:02:05]}  Rxc1+ {[%clk 0:01:04]} 36. Kg2 {[%clk 0:02:05]}  Nc6 {[%clk 0:01:04]} 37. Bb5 {[%clk 0:02:03]}  f6 {[%clk 0:00:44]} 38. exf6 {[%clk 0:02:02]}  Kf7 {[%clk 0:00:44]} 39. Nxg5+ {[%clk 0:02:02]}  Kxf6 {[%clk 0:00:45]} 40. Nf3 {[%clk 0:02:02]}  Nd7 {[%clk 0:00:40]} 41. g5+ {[%clk 0:01:57]}  Kf7 {[%clk 0:00:39]} 42. h4 {[%clk 0:01:58]}  a6 {[%clk 0:00:37]} 43. Bxc6 {[%clk 0:01:52]}  bxc6 {[%clk 0:00:37]} 44. Kg3 {[%clk 0:01:53]}  c5 {[%clk 0:00:36]} 45. dxc5 {[%clk 0:01:52]}  e5 {[%clk 0:00:34]} 46. Rxd5 {[%clk 0:01:50]}  Ke6 {[%clk 0:00:32]} 47. Rd6+ {[%clk 0:01:49]}  Ke7 {[%clk 0:00:32]} 48. Rxa6 {[%clk 0:01:47]}  Nxc5 {[%clk 0:00:32]} 49. Ra7+ {[%clk 0:01:46]}  Ke6 {[%clk 0:00:33]} 50. g6 {[%clk 0:01:42]}  Ne4+ {[%clk 0:00:32]} 51. Kg2 {[%clk 0:01:40]}  Rc2+ {[%clk 0:00:31]} 52. Kg1 {[%clk 0:01:40]}  Rc1+ {[%clk 0:00:30]} 53. Kg2 {[%clk 0:01:39]}  Rc2+ {[%clk 0:00:30]} 54. Kg1 {[%clk 0:01:28]}  Rc1+ {[%clk 0:00:27]} 55. Kg2 {[%clk 0:01:27]} 1/2-1/2


[Site "https://www.chess.com"]

[Event "Titled Tuesday Blitz June 28 Late 2022"]
[White "Barria Santos, Jose Guilherme"]
[Black "Matlakov, Maxim"]
[WhiteFideId "1939300"]
[BlackFideId "4168003"]
[WhiteElo "2261"]
[BlackElo "2669"]
[Result "0-1"]
[Round "01"]
[TimeControl "180+1"]
[Date "2022.06.28"]
[WhiteClock "0:00:26"]
[BlackClock "0:01:14"]

1. d4 {[%clk 0:02:58]}  d5 {[%clk 0:02:59]} 2. c4 {[%clk 0:02:57]}  c6 {[%clk 0:03:00]} 3. Nf3 {[%clk 0:02:57]}  Nf6 {[%clk 0:03:00]} 4. Nc3 {[%clk 0:02:58]}  dxc4 {[%clk 0:02:59]} 5. e3 {[%clk 0:02:58]}  b5 {[%clk 0:02:58]} 6. a4 {[%clk 0:02:58]}  b4 {[%clk 0:02:59]} 7. Nb1 {[%clk 0:02:59]}  e6 {[%clk 0:02:59]} 8. Bxc4 {[%clk 0:02:59]}  Bb7 {[%clk 0:02:52]} 9. O-O {[%clk 0:02:59]}  a5 {[%clk 0:02:48]} 10. b3 {[%clk 0:02:56]}  Nbd7 {[%clk 0:02:48]} 11. Bb2 {[%clk 0:02:54]}  Be7 {[%clk 0:02:46]} 12. Nbd2 {[%clk 0:02:49]}  O-O {[%clk 0:02:45]} 13. Re1 {[%clk 0:02:39]}  c5 {[%clk 0:02:45]} 14. Rc1 {[%clk 0:02:39]}  Rc8 {[%clk 0:02:45]} 15. Bb5 {[%clk 0:02:32]}  cxd4 {[%clk 0:02:37]} 16. Nxd4 {[%clk 0:02:33]}  Nc5 {[%clk 0:02:35]} 17. Nc4 {[%clk 0:02:23]}  Qc7 {[%clk 0:02:32]} 18. f3 {[%clk 0:02:08]}  Rfd8 {[%clk 0:02:31]} 19. Qc2 {[%clk 0:02:09]}  g6 {[%clk 0:02:24]} 20. Red1 {[%clk 0:02:03]}  Nd5 {[%clk 0:02:22]} 21. e4 {[%clk 0:01:39]}  Nf4 {[%clk 0:01:55]} 22. Ne3 {[%clk 0:01:29]}  Qb8 {[%clk 0:01:48]} 23. Bc4 {[%clk 0:01:23]}  Bg5 {[%clk 0:01:37]} 24. Ne2 {[%clk 0:00:34]}  Nfd3 {[%clk 0:01:25]} 25. f4 {[%clk 0:00:27]}  Bxf4 {[%clk 0:01:14]} 26. Nxf4 {[%clk 0:00:26]}  Qxf4 {[%clk 0:01:14]} 0-1


[Site "https://www.chess.com"]

[Event "Titled Tuesday Blitz June 28 Late 2022"]
[White "Sargsyan, Anna M."]
[Black "Castellanos Hernandez, Emilio Au"]
[WhiteFideId "13308130"]
[BlackFideId "5114179"]
[WhiteElo "2271"]
[BlackElo "2021"]
[Result "0-1"]
[Round "01"]
[TimeControl "180+1"]
[Date "2022.06.29"]
[WhiteClock "0:01:27"]
[BlackClock "0:01:50"]

1. d4 {[%clk 0:02:54]}  d5 {[%clk 0:02:59]} 2. c4 {[%clk 0:02:54]}  e6 {[%clk 0:02:59]} 3. Nf3 {[%clk 0:02:55]}  Nf6 {[%clk 0:03:00]} 4. Nc3 {[%clk 0:02:55]}  Bb4 {[%clk 0:02:59]} 5. Bg5 {[%clk 0:02:54]}  dxc4 {[%clk 0:02:59]} 6. e4 {[%clk 0:02:54]}  b5 {[%clk 0:02:58]} 7. e5 {[%clk 0:02:35]}  h6 {[%clk 0:02:56]} 8. Bh4 {[%clk 0:02:34]}  g5 {[%clk 0:02:50]} 9. Nxg5 {[%clk 0:02:34]}  Nd5 {[%clk 0:02:45]} 10. Nf3 {[%clk 0:02:33]}  Nxc3 {[%clk 0:02:37]} 11. bxc3 {[%clk 0:01:50]}  Bxc3+ {[%clk 0:02:35]} 12. Ke2 {[%clk 0:01:48]}  Qd5 {[%clk 0:02:34]} 13. Qb1 {[%clk 0:01:45]}  Ba6 {[%clk 0:02:19]} 14. Kd1 {[%clk 0:01:36]}  Nc6 {[%clk 0:02:12]} 15. Kc2 {[%clk 0:01:31]}  b4 {[%clk 0:02:05]} 16. Be2 {[%clk 0:01:30]}  Nxd4+ {[%clk 0:01:54]} 17. Nxd4 {[%clk 0:01:30]}  Qxd4 {[%clk 0:01:55]} 18. Bf6 {[%clk 0:01:27]}  Qd2# {[%clk 0:01:50]} 0-1


[Site "https://www.chess.com"]

[Event "Titled Tuesday Blitz June 28 Late 2022"]
[White "Sarkar, Justin"]
[Black "Bekturov, Tamerlan"]
[WhiteFideId "2010011"]
[BlackFideId "13710184"]
[WhiteElo "2020"]
[BlackElo "2151"]
[Result "0-1"]
[Round "01"]
[TimeControl "180+1"]
[Date "2022.06.29"]
[WhiteClock "0:00:01"]
[BlackClock "0:00:44"]

1. d4 {[%clk 0:02:56]}  d5 {[%clk 0:02:48]} 2. a3 {[%clk 0:02:55]}  Nf6 {[%clk 0:02:47]} 3. Bf4 {[%clk 0:02:54]}  c5 {[%clk 0:02:45]} 4. dxc5 {[%clk 0:02:46]}  e6 {[%clk 0:02:38]} 5. b4 {[%clk 0:02:42]}  a5 {[%clk 0:02:37]} 6. Nc3 {[%clk 0:02:25]}  b6 {[%clk 0:02:33]} 7. Nb5 {[%clk 0:02:13]}  Na6 {[%clk 0:02:24]} 8. c6 {[%clk 0:01:21]}  axb4 {[%clk 0:02:10]} 9. Nf3 {[%clk 0:01:19]}  bxa3 {[%clk 0:02:05]} 10. e3 {[%clk 0:01:16]}  Bb4+ {[%clk 0:02:05]} 11. c3 {[%clk 0:01:14]}  Bc5 {[%clk 0:01:51]} 12. Bd3 {[%clk 0:01:08]}  O-O {[%clk 0:01:51]} 13. O-O {[%clk 0:01:04]}  h6 {[%clk 0:01:28]} 14. Ne5 {[%clk 0:00:50]}  Qe8 {[%clk 0:01:15]} 15. g4 {[%clk 0:00:31]}  Ne4 {[%clk 0:01:05]} 16. Bxe4 {[%clk 0:00:19]}  dxe4 {[%clk 0:01:06]} 17. Nd6 {[%clk 0:00:15]}  Qe7 {[%clk 0:01:00]} 18. Nxc8 {[%clk 0:00:09]}  Rfxc8 {[%clk 0:00:59]} 19. Qd7 {[%clk 0:00:05]}  f6 {[%clk 0:00:51]} 20. Ng6 {[%clk 0:00:01]}  Qxd7 {[%clk 0:00:50]} 21. cxd7 {[%clk 0:00:02]}  Rd8 {[%clk 0:00:51]} 22. Rfd1 {[%clk 0:00:02]}  e5 {[%clk 0:00:50]} 23. Bg3 {[%clk 0:00:02]}  Kf7 {[%clk 0:00:50]} 24. Nh4 {[%clk 0:00:01]}  Ra7 {[%clk 0:00:44]} 0-1


[Site "https://www.chess.com"]

[Event "Titled Tuesday Blitz June 28 Late 2022"]
[White "Schekachikhin, Maksim"]
[Black "Diaz, Fernando"]
[WhiteFideId "24177830"]
[BlackFideId "3701255"]
[WhiteElo "2239"]
[BlackElo "1934"]
[Result "1-0"]
[Round "01"]
[TimeControl "180+1"]
[Date "2022.06.29"]
[WhiteClock "0:01:02"]
[BlackClock "0:00:01"]

1. e4 {[%clk 0:02:57]}  e6 {[%clk 0:03:00]} 2. d4 {[%clk 0:02:56]}  d5 {[%clk 0:03:00]} 3. Nd2 {[%clk 0:02:54]}  Nf6 {[%clk 0:03:00]} 4. e5 {[%clk 0:02:50]}  Nfd7 {[%clk 0:03:00]} 5. Bd3 {[%clk 0:02:49]}  c5 {[%clk 0:03:01]} 6. c3 {[%clk 0:02:49]}  Nc6 {[%clk 0:03:02]} 7. Ne2 {[%clk 0:02:49]}  cxd4 {[%clk 0:03:02]} 8. cxd4 {[%clk 0:02:49]}  f6 {[%clk 0:03:03]} 9. exf6 {[%clk 0:02:48]}  Nxf6 {[%clk 0:03:04]} 10. Nf3 {[%clk 0:02:47]}  Bd6 {[%clk 0:03:04]} 11. O-O {[%clk 0:02:46]}  Qc7 {[%clk 0:03:04]} 12. Bg5 {[%clk 0:02:44]}  O-O {[%clk 0:03:05]} 13. Rc1 {[%clk 0:02:43]}  Bd7 {[%clk 0:02:58]} 14. Bh4 {[%clk 0:02:42]}  Rae8 {[%clk 0:02:56]} 15. Bg3 {[%clk 0:02:41]}  Qb8 {[%clk 0:02:51]} 16. Re1 {[%clk 0:02:40]}  e5 {[%clk 0:02:47]} 17. dxe5 {[%clk 0:02:40]}  Nxe5 {[%clk 0:02:48]} 18. Nxe5 {[%clk 0:02:39]}  Bxe5 {[%clk 0:02:49]} 19. Qb3 {[%clk 0:02:33]}  Bc6 {[%clk 0:02:49]} 20. Bb5 {[%clk 0:02:25]}  Kh8 {[%clk 0:02:14]} 21. Bxc6 {[%clk 0:02:21]}  bxc6 {[%clk 0:02:15]} 22. Qxb8 {[%clk 0:02:20]}  Bxb8 {[%clk 0:02:09]} 23. Bxb8 {[%clk 0:02:19]}  Rxb8 {[%clk 0:02:09]} 24. b3 {[%clk 0:02:20]}  Rb6 {[%clk 0:02:03]} 25. Nd4 {[%clk 0:02:19]}  Rc8 {[%clk 0:01:46]} 26. Re7 {[%clk 0:02:17]}  a6 {[%clk 0:01:40]} 27. Nf5 {[%clk 0:02:16]}  g6 {[%clk 0:01:30]} 28. Nd6 {[%clk 0:02:16]}  Rf8 {[%clk 0:01:21]} 29. f3 {[%clk 0:02:13]}  Nh5 {[%clk 0:01:01]} 30. Rc7 {[%clk 0:02:09]}  c5 {[%clk 0:00:50]} 31. Nf7+ {[%clk 0:02:08]}  Kg8 {[%clk 0:00:47]} 32. Nh6+ {[%clk 0:02:08]}  Kh8 {[%clk 0:00:48]} 33. R1xc5 {[%clk 0:02:07]}  Nf6 {[%clk 0:00:43]} 34. R5c6 {[%clk 0:02:01]}  Rxc6 {[%clk 0:00:41]} 35. Rxc6 {[%clk 0:02:02]}  d4 {[%clk 0:00:39]} 36. Rd6 {[%clk 0:02:00]}  Kg7 {[%clk 0:00:36]} 37. Ng4 {[%clk 0:01:58]}  Nxg4 {[%clk 0:00:26]} 38. fxg4 {[%clk 0:01:59]}  Rc8 {[%clk 0:00:20]} 39. Rxa6 {[%clk 0:01:56]}  Rc1+ {[%clk 0:00:20]} 40. Kf2 {[%clk 0:01:56]}  d3 {[%clk 0:00:19]} 41. Rd6 {[%clk 0:01:54]}  Rc2+ {[%clk 0:00:19]} 42. Kf3 {[%clk 0:01:54]}  d2 {[%clk 0:00:16]} 43. a4 {[%clk 0:01:42]}  Rb2 {[%clk 0:00:12]} 44. Ke2 {[%clk 0:01:14]}  d1=Q+ {[%clk 0:00:10]} 45. Kxd1 {[%clk 0:01:13]}  Rxb3 {[%clk 0:00:07]} 46. h3 {[%clk 0:01:09]}  Rb2 {[%clk 0:00:05]} 47. Rd2 {[%clk 0:01:08]}  Rb1+ {[%clk 0:00:04]} 48. Ke2 {[%clk 0:01:08]}  Ra1 {[%clk 0:00:04]} 49. Rd4 {[%clk 0:01:07]}  Ra2+ {[%clk 0:00:04]} 50. Kf3 {[%clk 0:01:07]}  g5 {[%clk 0:00:04]} 51. Rd7+ {[%clk 0:01:04]}  Kg6 {[%clk 0:00:04]} 52. Rd6+ {[%clk 0:01:04]}  Kg7 {[%clk 0:00:04]} 53. Ra6 {[%clk 0:01:05]}  h6 {[%clk 0:00:03]} 54. a5 {[%clk 0:01:04]}  Ra4 {[%clk 0:00:03]} 55. Ra8 {[%clk 0:01:04]}  Kf6 {[%clk 0:00:01]} 56. a6 {[%clk 0:01:04]}  Ke5 {[%clk 0:00:01]} 57. a7 {[%clk 0:01:03]}  Ra3+ {[%clk 0:00:02]} 58. Kf2 {[%clk 0:01:03]}  Ra2+ {[%clk 0:00:01]} 59. Kg1 {[%clk 0:01:02]} 1-0


[Site "https://www.chess.com"]

[Event "Titled Tuesday Blitz June 28 Late 2022"]
[White "Silva, Miguel Antonio Neto"]
[Black "Jaracz, Pawel"]
[WhiteFideId "1911929"]
[BlackFideId "1102222"]
[WhiteElo "2204"]
[BlackElo "2459"]
[Result "0-1"]
[Round "01"]
[TimeControl "180+1"]
[Date "2022.06.29"]
[WhiteClock "0:01:06"]
[BlackClock "0:01:23"]

1. e4 {[%clk 0:03:00]}  c5 {[%clk 0:02:57]} 2. Nf3 {[%clk 0:02:42]}  e6 {[%clk 0:02:57]} 3. d4 {[%clk 0:02:38]}  cxd4 {[%clk 0:02:57]} 4. Nxd4 {[%clk 0:02:39]}  a6 {[%clk 0:02:57]} 5. Bd3 {[%clk 0:02:38]}  Nf6 {[%clk 0:02:57]} 6. O-O {[%clk 0:02:38]}  Qc7 {[%clk 0:02:57]} 7. c4 {[%clk 0:02:37]}  Nc6 {[%clk 0:02:56]} 8. Nc2 {[%clk 0:02:32]}  Ne5 {[%clk 0:02:52]} 9. Bf4 {[%clk 0:02:22]}  d6 {[%clk 0:02:48]} 10. b3 {[%clk 0:02:18]}  b6 {[%clk 0:02:42]} 11. Re1 {[%clk 0:02:08]}  Bb7 {[%clk 0:02:41]} 12. Bg3 {[%clk 0:02:05]}  Be7 {[%clk 0:02:36]} 13. f4 {[%clk 0:01:46]}  Nxd3 {[%clk 0:02:35]} 14. Qxd3 {[%clk 0:01:47]}  O-O {[%clk 0:02:34]} 15. h3 {[%clk 0:01:44]}  Rac8 {[%clk 0:02:34]} 16. Nd2 {[%clk 0:01:44]}  b5 {[%clk 0:02:30]} 17. Ne3 {[%clk 0:01:37]}  bxc4 {[%clk 0:02:26]} 18. Nexc4 {[%clk 0:01:37]}  Rfd8 {[%clk 0:02:18]} 19. Rac1 {[%clk 0:01:36]}  d5 {[%clk 0:02:16]} 20. Ne5 {[%clk 0:01:32]}  Qb6+ {[%clk 0:01:49]} 21. Bf2 {[%clk 0:01:27]}  Qa5 {[%clk 0:01:31]} 22. Rxc8 {[%clk 0:01:26]}  Rxc8 {[%clk 0:01:31]} 23. exd5 {[%clk 0:01:23]}  Bxd5 {[%clk 0:01:30]} 24. Ndc4 {[%clk 0:01:10]}  Qxa2 {[%clk 0:01:28]} 25. f5 {[%clk 0:01:08]}  Bc5 {[%clk 0:01:24]} 26. Bxc5 {[%clk 0:01:06]}  Qxg2# {[%clk 0:01:23]} 0-1


[Site "https://www.chess.com"]

[Event "Titled Tuesday Blitz June 28 Late 2022"]
[White "Silvestre, Christian"]
[Black "Paszewski, Mateusz"]
[WhiteFideId "30956269"]
[BlackFideId "1141058"]
[WhiteElo "2367"]
[BlackElo "2171"]
[Result "0-1"]
[Round "01"]
[TimeControl "180+1"]
[Date "2022.06.29"]
[WhiteClock "0:00:43"]
[BlackClock "0:01:38"]

1. e4 {[%clk 0:02:58]}  c6 {[%clk 0:02:58]} 2. Nc3 {[%clk 0:02:56]}  d5 {[%clk 0:02:59]} 3. Nf3 {[%clk 0:02:56]}  dxe4 {[%clk 0:03:00]} 4. Nxe4 {[%clk 0:02:56]}  Nf6 {[%clk 0:03:01]} 5. Nxf6+ {[%clk 0:02:56]}  exf6 {[%clk 0:03:01]} 6. d4 {[%clk 0:02:57]}  Bd6 {[%clk 0:03:02]} 7. h3 {[%clk 0:02:57]}  O-O {[%clk 0:03:02]} 8. Be2 {[%clk 0:02:56]}  Re8 {[%clk 0:03:02]} 9. O-O {[%clk 0:02:56]}  Bf5 {[%clk 0:03:02]} 10. c3 {[%clk 0:02:55]}  Nd7 {[%clk 0:03:03]} 11. Re1 {[%clk 0:02:55]}  Nf8 {[%clk 0:03:02]} 12. Be3 {[%clk 0:02:48]}  Ng6 {[%clk 0:02:57]} 13. Bd3 {[%clk 0:02:46]}  Qd7 {[%clk 0:02:51]} 14. Bxf5 {[%clk 0:02:43]}  Qxf5 {[%clk 0:02:52]} 15. Qb3 {[%clk 0:02:39]}  Re7 {[%clk 0:02:50]} 16. Bd2 {[%clk 0:02:34]}  Rae8 {[%clk 0:02:49]} 17. Rxe7 {[%clk 0:02:33]}  Rxe7 {[%clk 0:02:50]} 18. Re1 {[%clk 0:02:28]}  Rxe1+ {[%clk 0:02:50]} 19. Nxe1 {[%clk 0:02:19]}  b5 {[%clk 0:02:48]} 20. Qc2 {[%clk 0:02:10]}  Qe6 {[%clk 0:02:43]} 21. b3 {[%clk 0:01:58]}  Nf4 {[%clk 0:02:32]} 22. Nd3 {[%clk 0:01:38]}  Qe2 {[%clk 0:02:03]} 23. Nc1 {[%clk 0:01:21]}  Qe6 {[%clk 0:02:02]} 24. Bxf4 {[%clk 0:01:18]}  Qe1+ {[%clk 0:02:01]} 25. Kh2 {[%clk 0:01:14]}  Bxf4+ {[%clk 0:02:02]} 26. g3 {[%clk 0:01:10]}  Bxc1 {[%clk 0:02:02]} 27. Qf5 {[%clk 0:01:06]}  Qe6 {[%clk 0:01:55]} 28. Qc2 {[%clk 0:01:00]}  Ba3 {[%clk 0:01:45]} 29. c4 {[%clk 0:00:56]}  bxc4 {[%clk 0:01:46]} 30. bxc4 {[%clk 0:00:57]}  g6 {[%clk 0:01:41]} 31. Qd3 {[%clk 0:00:52]}  Bd6 {[%clk 0:01:40]} 32. d5 {[%clk 0:00:52]}  cxd5 {[%clk 0:01:40]} 33. cxd5 {[%clk 0:00:53]}  Qe5 {[%clk 0:01:40]} 34. a4 {[%clk 0:00:48]}  Kg7 {[%clk 0:01:39]} 35. a5 {[%clk 0:00:47]}  h5 {[%clk 0:01:38]} 36. a6 {[%clk 0:00:46]}  h4 {[%clk 0:01:37]} 37. Kg2 {[%clk 0:00:46]}  hxg3 {[%clk 0:01:37]} 38. fxg3 {[%clk 0:00:47]}  f5 {[%clk 0:01:37]} 39. h4 {[%clk 0:00:43]}  Qe4+ {[%clk 0:01:36]} 40. Qxe4 {[%clk 0:00:43]}  fxe4 {[%clk 0:01:37]} 41. g4 {[%clk 0:00:42]}  f5 {[%clk 0:01:36]} 42. gxf5 {[%clk 0:00:42]}  gxf5 {[%clk 0:01:37]} 43. Kf2 {[%clk 0:00:43]}  f4 {[%clk 0:01:37]} 44. Ke2 {[%clk 0:00:43]}  Kg6 {[%clk 0:01:38]} 45. h5+ {[%clk 0:00:43]}  Kxh5 {[%clk 0:01:38]} 0-1


[Site "https://www.chess.com"]

[Event "Titled Tuesday Blitz June 28 Late 2022"]
[White "Steinberg, Nitzan"]
[Black "Aydin, Gulenay"]
[WhiteFideId "2801795"]
[BlackFideId "34557431"]
[WhiteElo "2471"]
[BlackElo "1454"]
[Result "1-0"]
[Round "01"]
[TimeControl "180+1"]
[Date "2022.06.28"]
[WhiteClock "0:02:06"]
[BlackClock "0:02:02"]

1. e4 {[%clk 0:03:00]}  c5 {[%clk 0:02:59]} 2. Nf3 {[%clk 0:03:01]}  d6 {[%clk 0:03:00]} 3. d4 {[%clk 0:03:01]}  cxd4 {[%clk 0:03:01]} 4. Nxd4 {[%clk 0:03:02]}  Nf6 {[%clk 0:03:01]} 5. Nc3 {[%clk 0:03:03]}  g6 {[%clk 0:03:02]} 6. Be3 {[%clk 0:03:02]}  Bg7 {[%clk 0:03:02]} 7. f3 {[%clk 0:03:02]}  a6 {[%clk 0:03:03]} 8. h4 {[%clk 0:02:59]}  h5 {[%clk 0:03:02]} 9. Qd2 {[%clk 0:02:55]}  b5 {[%clk 0:03:00]} 10. a4 {[%clk 0:02:46]}  b4 {[%clk 0:02:53]} 11. Nd5 {[%clk 0:02:46]}  a5 {[%clk 0:02:45]} 12. O-O-O {[%clk 0:02:22]}  Bb7 {[%clk 0:02:37]} 13. Bb5+ {[%clk 0:02:18]}  Nbd7 {[%clk 0:02:31]} 14. Nc6 {[%clk 0:02:15]}  Bxc6 {[%clk 0:02:30]} 15. Bxc6 {[%clk 0:02:15]}  Rc8 {[%clk 0:02:28]} 16. Bb6 {[%clk 0:02:12]}  Rxc6 {[%clk 0:02:03]} 17. Bxd8 {[%clk 0:02:12]}  Kxd8 {[%clk 0:02:02]} 18. Qe2 {[%clk 0:02:06]} 1-0


[Site "https://www.chess.com"]

[Event "Titled Tuesday Blitz June 28 Late 2022"]
[White "Tari, Aryan"]
[Black "Perera Alfonso, Rene Humberto"]
[WhiteFideId "1510045"]
[BlackFideId "3514722"]
[WhiteElo "2567"]
[BlackElo "2313"]
[Result "1-0"]
[Round "01"]
[TimeControl "180+1"]
[Date "2022.06.28"]
[WhiteClock "0:00:20"]
[BlackClock "0:01:21"]

1. e4 {[%clk 0:02:59]}  c5 {[%clk 0:02:59]} 2. Nc3 {[%clk 0:02:58]}  d6 {[%clk 0:02:58]} 3. f4 {[%clk 0:02:58]}  Nf6 {[%clk 0:02:58]} 4. Nf3 {[%clk 0:02:59]}  g6 {[%clk 0:02:56]} 5. Bb5+ {[%clk 0:02:57]}  Bd7 {[%clk 0:02:56]} 6. Bc4 {[%clk 0:02:57]}  Bg7 {[%clk 0:02:56]} 7. e5 {[%clk 0:02:55]}  Ng4 {[%clk 0:02:52]} 8. Ng5 {[%clk 0:02:34]}  Nh6 {[%clk 0:02:48]} 9. e6 {[%clk 0:02:33]}  fxe6 {[%clk 0:02:47]} 10. Nxe6 {[%clk 0:02:32]}  Bxe6 {[%clk 0:02:45]} 11. Bxe6 {[%clk 0:02:33]}  Nc6 {[%clk 0:02:45]} 12. O-O {[%clk 0:02:31]}  Nd4 {[%clk 0:02:44]} 13. Bc4 {[%clk 0:02:30]}  Qd7 {[%clk 0:02:41]} 14. Ne2 {[%clk 0:02:09]}  d5 {[%clk 0:02:35]} 15. c3 {[%clk 0:02:02]}  dxc4 {[%clk 0:02:33]} 16. cxd4 {[%clk 0:02:03]}  cxd4 {[%clk 0:02:34]} 17. d3 {[%clk 0:02:03]}  c3 {[%clk 0:02:31]} 18. Qb3 {[%clk 0:02:01]}  Rc8 {[%clk 0:02:23]} 19. Ng3 {[%clk 0:01:56]}  e6 {[%clk 0:02:19]} 20. bxc3 {[%clk 0:01:52]}  dxc3 {[%clk 0:02:18]} 21. Ba3 {[%clk 0:01:52]}  Nf5 {[%clk 0:02:12]} 22. Ne4 {[%clk 0:01:52]}  h6 {[%clk 0:02:05]} 23. Kh1 {[%clk 0:01:50]}  Kf7 {[%clk 0:02:00]} 24. Rae1 {[%clk 0:01:40]}  Rhe8 {[%clk 0:01:59]} 25. Nc5 {[%clk 0:01:36]}  Qd5 {[%clk 0:01:56]} 26. Qxb7+ {[%clk 0:01:15]}  Qxb7 {[%clk 0:01:52]} 27. Nxb7 {[%clk 0:01:16]}  Rb8 {[%clk 0:01:46]} 28. Na5 {[%clk 0:01:14]}  Rb5 {[%clk 0:01:44]} 29. Nc4 {[%clk 0:01:14]}  Rd8 {[%clk 0:01:37]} 30. g4 {[%clk 0:01:08]}  Nd4 {[%clk 0:01:33]} 31. Nd6+ {[%clk 0:01:08]}  Rxd6 {[%clk 0:01:33]} 32. Bxd6 {[%clk 0:01:08]}  Rb2 {[%clk 0:01:33]} 33. Be5 {[%clk 0:01:04]}  Bxe5 {[%clk 0:01:32]} 34. fxe5+ {[%clk 0:01:02]}  Ke7 {[%clk 0:01:32]} 35. Rb1 {[%clk 0:00:41]}  Rxa2 {[%clk 0:01:29]} 36. Rb7+ {[%clk 0:00:41]}  Ke8 {[%clk 0:01:29]} 37. Rb8+ {[%clk 0:00:22]}  Ke7 {[%clk 0:01:27]} 38. Rbf8 {[%clk 0:00:21]}  Kd7 {[%clk 0:01:26]} 39. R1f7+ {[%clk 0:00:21]}  Kc6 {[%clk 0:01:26]} 40. Rc8+ {[%clk 0:00:22]}  Kd5 {[%clk 0:01:26]} 41. Rd7+ {[%clk 0:00:20]}  Kxe5 {[%clk 0:01:24]} 42. Rc5+ {[%clk 0:00:21]}  Kf6 {[%clk 0:01:23]} 43. Rxd4 {[%clk 0:00:20]}  c2 {[%clk 0:01:21]} 44. Rdc4 {[%clk 0:00:20]} 1-0


[Site "https://www.chess.com"]

[Event "Titled Tuesday Blitz June 28 Late 2022"]
[White "Vidonyak, Roman"]
[Black "Chernobay, Artem"]
[WhiteFideId "14100622"]
[BlackFideId "4167406"]
[WhiteElo "2339"]
[BlackElo "2473"]
[Result "0-1"]
[Round "01"]
[TimeControl "180+1"]
[Date "2022.06.29"]
[WhiteClock "0:00:34"]
[BlackClock "0:01:34"]

1. d4 {[%clk 0:03:00]}  Nf6 {[%clk 0:02:59]} 2. c4 {[%clk 0:03:00]}  g6 {[%clk 0:03:00]} 3. h4 {[%clk 0:03:00]}  Bg7 {[%clk 0:02:57]} 4. Nc3 {[%clk 0:03:00]}  d6 {[%clk 0:02:53]} 5. e4 {[%clk 0:03:00]}  O-O {[%clk 0:02:48]} 6. Be2 {[%clk 0:03:00]}  c5 {[%clk 0:02:47]} 7. d5 {[%clk 0:02:59]}  e6 {[%clk 0:02:48]} 8. h5 {[%clk 0:02:56]}  exd5 {[%clk 0:02:48]} 9. exd5 {[%clk 0:02:57]}  a6 {[%clk 0:02:32]} 10. h6 {[%clk 0:02:50]}  Bh8 {[%clk 0:02:31]} 11. a4 {[%clk 0:02:50]}  Re8 {[%clk 0:02:25]} 12. Kf1 {[%clk 0:02:50]}  Ne4 {[%clk 0:02:14]} 13. Nxe4 {[%clk 0:01:48]}  Rxe4 {[%clk 0:02:15]} 14. Bd3 {[%clk 0:01:46]}  Re8 {[%clk 0:02:08]} 15. Nf3 {[%clk 0:01:42]}  Nd7 {[%clk 0:02:07]} 16. Bg5 {[%clk 0:01:35]}  Qb6 {[%clk 0:02:00]} 17. b3 {[%clk 0:01:23]}  Ne5 {[%clk 0:01:54]} 18. Nxe5 {[%clk 0:01:12]}  dxe5 {[%clk 0:01:54]} 19. a5 {[%clk 0:01:05]}  Qd6 {[%clk 0:01:54]} 20. Qc2 {[%clk 0:00:57]}  Bd7 {[%clk 0:01:37]} 21. g3 {[%clk 0:00:54]}  e4 {[%clk 0:01:35]} 22. Be2 {[%clk 0:00:34]}  Bxa1 {[%clk 0:01:34]} 0-1


[Site "https://www.chess.com"]